bitfinex/quotes_BTCUSD_20241116
["timestamp","ask_amount","ask_price","bid_price","bid_amount"]
[1731787899449,0.109907,90986.0,90981.0,0.109912]
[1731787899744,0.219806,90989.0,90981.0,0.109912]
[1731787899865,0.109907,90986.0,90981.0,0.109912]
[1731787900094,0.301699,90992.0,90972.0,0.219847]
[1731787900298,0.109905,90988.0,90982.0,0.109911]
[1731787900745,0.109905,90988.0,90983.0,0.10991]
[1731787900903,0.00446372,90990.0,90981.0,0.109912]
[1731787901106,0.109907,90986.0,90981.0,0.109912]
[1731787901917,0.109907,90986.0,90982.0,0.109911]
[1731787902126,0.001716,90990.0,90973.0,0.09857886]
[1731787902345,0.001716,90990.0,90982.0,0.219823]
[1731787902552,0.111618,90990.0,90980.0,0.219826]
[1731787902790,0.111618,90990.0,90984.0,0.109908]
[1731787902995,0.001716,90990.0,90982.0,0.219823]
[1731787903210,0.001716,90990.0,90986.0,0.109906]
[1731787903421,0.001716,90990.0,90973.0,0.09862578]
[1731787903657,0.001716,90990.0,90987.0,0.109905]
[1731787904936,0.001716,90990.0,90985.0,0.219815]
[1731787905207,0.001716,90990.0,90981.0,0.219824]
[1731787905208,0.001716,90990.0,90989.0,0.109903]
[1731787908450,0.001716,90990.0,90989.0,0.20852878]
[1731787909643,0.001716,90990.0,90989.0,0.109903]
[1731787909867,0.001716,90990.0,90988.0,0.14793867]
[1731787909868,0.16495752,91003.0,91002.0,0.109887]
[1731787910560,0.00164852,91004.0,91003.0,0.109886]
[1731787910983,0.00164852,91004.0,90997.0,0.219786]
[1731787911218,0.00164852,91004.0,90992.0,0.09852361]
[1731787911445,0.109892,90999.0,90993.0,0.109897]
[1731787911651,0.109892,90999.0,90989.0,0.219806]
[1731787911652,0.109892,90999.0,90991.0,0.219801]
[1731787911852,0.10989,91000.0,90992.0,0.219799]
[1731787912064,0.11263932,90999.0,90993.0,0.109897]
[1731787912296,0.219785,90998.0,90987.0,0.219811]
[1731787912553,0.219785,90998.0,90992.0,0.109899]
[1731787912554,0.109892,90998.0,90992.0,0.109899]
[1731787912784,0.109892,90998.0,90993.0,0.109898]
[1731787913225,0.109892,90998.0,90983.0,0.02172448]
[1731787913226,0.109894,90997.0,90989.0,0.219806]
[1731787913449,0.00274732,90999.0,90983.0,0.12024809]
[1731787913670,0.109893,90998.0,90989.0,0.219805]
[1731787913902,0.109896,90995.0,90983.0,0.15577864]
[1731787914116,0.00274752,90994.0,90990.0,0.109901]
[1731787914497,0.00274752,90994.0,90986.0,0.219814]
[1731787914745,0.1268,91000.0,90983.0,0.02172448]
[1731787914746,0.1268,91000.0,90987.0,0.219811]
[1731787914966,0.109892,90998.0,90992.0,0.109898]
[1731787915358,0.23669,91000.0,90994.0,0.109897]
[1731787915598,0.23586255,91000.0,90990.0,0.219804]
[1731787915838,0.24475752,91000.0,90985.0,0.09852361]
[1731787916064,0.109896,90995.0,90983.0,0.24154448]
[1731787916264,0.109896,90995.0,90990.0,0.109901]
[1731787916499,0.219782,90999.0,90983.0,0.02172448]
[1731787916727,0.109894,90997.0,90991.0,0.1099]
[1731787916956,0.24475752,91000.0,90991.0,0.109899]
[1731787916957,0.109894,90996.0,90991.0,0.109899]
[1731787917870,0.219785,90998.0,90986.0,0.219814]
[1731787918085,0.109893,90997.0,90986.0,0.219814]
[1731787918305,0.109893,90997.0,90991.0,0.1099]
[1731787918899,0.0017152,90994.0,90988.0,0.219809]
[1731787919139,0.0017152,90994.0,90990.0,0.109901]
[1731787919552,0.0017152,90994.0,90988.0,0.219809]
[1731787919759,0.0017152,90994.0,90991.0,0.1099]
[1731787920618,0.045,90993.0,90981.0,0.09852361]
[1731787920828,0.219799,90992.0,90976.0,0.09855655]
[1731787921033,0.109906,90987.0,90981.0,0.13214045]
[1731787921262,0.109906,90987.0,90982.0,0.109911]
[1731787921540,0.16495752,90989.0,90978.0,0.03610966]
[1731787921742,0.219809,90988.0,90979.0,0.21983]
[1731787921960,0.219809,90988.0,90981.0,0.109912]
[1731787921961,0.109906,90987.0,90981.0,0.109912]
[1731787922174,0.109907,90986.0,90981.0,0.109912]
[1731787922846,0.109907,90986.0,90979.0,0.21983]
[1731787923070,0.109907,90986.0,90982.0,0.109911]
[1731787923293,0.109905,90988.0,90982.0,0.109911]
[1731787923488,0.16495752,90987.0,90982.0,0.109911]
[1731787923704,0.109906,90987.0,90981.0,0.109912]
[1731787923911,0.109906,90987.0,90979.0,0.21983]
[1731787923912,0.219804,90990.0,90983.0,0.10991]
[1731787924165,0.109903,90989.0,90979.0,0.21983]
[1731787924394,0.109901,90991.0,90980.0,0.219828]
[1731787924598,0.15406255,90993.0,90978.0,0.03610966]
[1731787924794,0.109901,90991.0,90985.0,0.109907]
[1731787925036,0.109901,90991.0,90986.0,0.109906]
[1731787925699,0.00274768,90990.0,90980.0,0.219828]
[1731787925901,0.109904,90988.0,90982.0,0.109911]
[1731787926087,0.109904,90988.0,90983.0,0.10991]
[1731787928397,0.109904,90988.0,90981.0,0.109912]
[1731787928646,0.109904,90988.0,90982.0,0.109911]
[1731787928845,0.109903,90989.0,90983.0,0.109909]
[1731787929083,0.109904,90988.0,90982.0,0.109911]
[1731787929228,0.109904,90988.0,90980.0,0.219828]
[1731787929428,0.109904,90988.0,90982.0,0.109911]
[1731787930089,0.109901,90991.0,90980.0,0.219828]
[1731787930321,0.109901,90991.0,90985.0,0.109907]
[1731787930491,0.37385955,90993.0,90985.0,0.109907]
[1731787930492,0.109902,90990.0,90985.0,0.109907]
[1731787930968,0.1099,90992.0,90986.0,0.109906]
[1731787931173,0.15406255,90993.0,90983.0,0.219821]
[1731787931409,0.0017152,90994.0,90980.0,0.07391411]
[1731787931965,0.0017152,90994.0,90989.0,0.109902]
[1731787932404,0.1116122,90994.0,90989.0,0.109902]
[1731787933047,0.109898,90993.0,90988.0,0.109904]
[1731787933242,0.2215112,90994.0,90986.0,0.109906]
[1731787933487,0.2215112,90994.0,90982.0,0.219822]
[1731787933685,0.0027475,90993.0,90987.0,0.109905]
[1731787933805,0.0027475,90993.0,90982.0,0.219822]
[1731787933806,0.0017152,90994.0,90982.0,0.219822]
[1731787934011,0.2198,90992.0,90983.0,0.109909]
[1731787934265,0.0044627,90994.0,90987.0,0.109904]
[1731787934473,0.109898,90993.0,90987.0,0.109904]
[1731787934912,0.109898,90993.0,90983.0,0.219821]
[1731787935125,0.1143597,90994.0,90984.0,0.219818]
[1731787935337,0.0044627,90994.0,90985.0,0.219816]
[1731787935551,0.0044627,90994.0,90990.0,0.109901]
[1731787937957,0.16495752,90991.0,90982.0,0.09864413]
[1731787938200,0.109914,90980.0,90979.0,0.0008574]
[1731787942497,0.21897655,90980.0,90979.0,0.0008574]
[1731787954645,0.21897655,90980.0,90978.0,0.0008575]
[1731787954646,0.10906255,90980.0,90965.0,0.04972024]
[1731787954875,0.109925,90971.0,90965.0,0.109931]
[1731787955314,0.109925,90971.0,90964.0,0.109933]
[1731787955530,0.109925,90971.0,90965.0,0.109931]
[1731787956918,0.16770567,90975.0,90960.0,0.25580735]
[1731787956919,0.0829,90969.0,90960.0,0.03593135]
[1731787957142,0.109934,90964.0,90960.0,0.03593135]
[1731787958048,0.109934,90964.0,90960.0,0.0008577]
[1731787959423,0.0829,90969.0,90960.0,0.0008577]
[1731787959648,0.11267737,90968.0,90963.0,0.109933]
[1731787960107,0.10993,90967.0,90961.0,0.109936]
[1731787960764,0.10993,90967.0,90962.0,0.109935]
[1731787960998,0.00274837,90968.0,90962.0,0.219871]
[1731787961223,0.0829,90969.0,90960.0,0.03677788]
[1731787961224,0.00274837,90966.0,90960.0,0.03677788]
[1731787961487,0.109931,90966.0,90961.0,0.109936]
[1731787961704,0.11267737,90968.0,90962.0,0.109935]
[1731787962377,0.11267737,90968.0,90963.0,0.109934]
[1731787962635,0.11267737,90968.0,90963.0,0.109933]
[1731787963309,0.00274837,90968.0,90964.0,0.109932]
[1731787963773,0.00274837,90968.0,90962.0,0.219872]
[1731787963989,0.00274837,90968.0,90964.0,0.109933]
[1731787964199,0.00274837,90968.0,90962.0,0.219872]
[1731787964414,0.00274837,90968.0,90964.0,0.109932]
[1731787964628,0.00274837,90968.0,90960.0,0.0008577]
[1731787964629,0.16495752,90972.0,90960.0,0.0475577]
[1731787964846,0.109925,90971.0,90964.0,0.109932]
[1731787965102,0.11267316,90971.0,90965.0,0.109932]
[1731787965337,0.219852,90970.0,90960.0,0.0008577]
[1731787965546,0.109931,90966.0,90960.0,0.1107947]
[1731787965762,0.11268137,90965.0,90960.0,0.0008577]
[1731787965985,0.00274837,90965.0,90960.0,0.0008577]
[1731787966262,0.11268037,90965.0,90960.0,0.1107947]
[1731787966511,0.00274837,90965.0,90963.0,0.109934]
[1731787966749,0.00274837,90967.0,90963.0,0.109934]
[1731787968711,0.11267837,90967.0,90962.0,0.0008574]
[1731787968999,0.23876255,90966.0,90962.0,0.0008574]
[1731787969205,0.109934,90963.0,90962.0,0.0008574]
[1731787969419,0.22174526,90963.0,90962.0,0.0008574]
[1731787969910,0.109939,90959.0,90958.0,0.00056742]
[1731787970128,0.11268771,90959.0,90958.0,0.00056742]
[1731787973247,0.42540053,90959.0,90958.0,0.00056742]
[1731787973465,0.42265182,90959.0,90958.0,0.00056742]
[1731787973878,0.34870155,90959.0,90958.0,0.00056742]
[1731787974121,0.42265182,90959.0,90958.0,0.00056742]
[1731787974772,0.34870155,90959.0,90958.0,0.00056742]
[1731787974984,0.23876255,90959.0,90958.0,0.00056742]
[1731787975244,0.34870155,90959.0,90958.0,0.00056742]
[1731787982588,0.109947,90953.0,90947.0,0.10530042]
[1731787982832,0.00274882,90952.0,90949.0,0.109951]
[1731787983077,0.00274881,90954.0,90949.0,0.109951]
[1731787984249,0.109945,90954.0,90949.0,0.109951]
[1731787984479,0.0027488,90953.0,90949.0,0.109951]
[1731787985594,0.32894655,90957.0,90949.0,0.109951]
[1731787985595,0.0027488,90956.0,90949.0,0.109951]
[1731787985809,0.109946,90954.0,90949.0,0.109951]
[1731787986021,0.0027488,90953.0,90949.0,0.109951]
[1731787986244,0.0027488,90953.0,90946.0,0.0017146]
[1731787986456,0.0027488,90953.0,90947.0,0.219908]
[1731787986703,0.00274882,90956.0,90948.0,0.219905]
[1731787986989,0.11269282,90956.0,90950.0,0.10995]
[1731787987410,0.109944,90955.0,90950.0,0.10995]
[1731787987658,0.00274879,90954.0,90950.0,0.10995]
[1731787987869,0.00274879,90954.0,90946.0,0.0017146]
[1731787988086,0.10995,90950.0,90946.0,0.0017146]
[1731787988273,0.00274882,90949.0,90948.0,0.109952]
[1731787988535,0.00274882,90953.0,90948.0,0.109952]
[1731787988752,0.11269582,90953.0,90948.0,0.109952]
[1731787988990,0.00274882,90953.0,90950.0,0.109949]
[1731787989470,0.0027488,90952.0,90950.0,0.109949]
[1731787989691,0.0027488,90954.0,90950.0,0.109949]
[1731787990595,0.0027488,90954.0,90951.0,0.109949]
[1731787991771,0.00274879,90953.0,90951.0,0.109949]
[1731787992005,0.00274879,90955.0,90951.0,0.109949]
[1731787992235,0.00274879,90955.0,90952.0,0.109948]
[1731787992480,0.00274879,90955.0,90952.0,0.109947]
[1731787993140,0.00274879,90955.0,90954.0,0.109945]
[1731787993379,0.00274879,90955.0,90952.0,0.219894]
[1731787993586,0.00274879,90955.0,90950.0,0.0008577]
[1731787993796,0.00274879,90955.0,90953.0,0.109946]
[1731787994235,0.00274879,90955.0,90954.0,0.109945]
[1731787994703,0.00274879,90955.0,90951.0,0.219898]
[1731787994915,0.00274879,90955.0,90953.0,0.109946]
[1731787995125,0.00274879,90955.0,90954.0,0.109945]
[1731787996197,0.00274879,90955.0,90951.0,0.219898]
[1731787996440,0.00274879,90955.0,90952.0,0.109947]
[1731787996934,0.00274879,90955.0,90954.0,0.109945]
[1731787997165,0.0835154,90959.0,90957.0,0.109941]
[1731787997366,0.10906255,90958.0,90957.0,0.109941]
[1731787997579,0.10906255,90958.0,90955.0,0.109943]
[1731787997800,0.10906255,90958.0,90956.0,0.109942]
[1731787998443,0.11181128,90958.0,90954.0,0.109945]
[1731787998654,0.11181128,90958.0,90950.0,0.1108067]
[1731787998877,0.11181128,90958.0,90950.0,0.0008577]
[1731787999088,0.11181128,90958.0,90953.0,0.109946]
[1731787999299,0.11181128,90958.0,90950.0,0.2207567]
[1731787999524,0.11181128,90958.0,90952.0,0.109947]
[1731787999525,0.22175128,90958.0,90952.0,0.109947]
[1731787999976,0.22175128,90958.0,90950.0,0.2207567]
[1731788000198,0.22175128,90958.0,90953.0,0.109946]
[1731788001875,0.11181128,90958.0,90952.0,0.109948]
[1731788002087,0.11181128,90958.0,90950.0,0.0008577]
[1731788002303,0.11181128,90958.0,90953.0,0.219893]
[1731788002512,0.11181128,90958.0,90950.0,0.0008577]
[1731788002718,0.11181128,90958.0,90954.0,0.109944]
[1731788002928,0.11181128,90958.0,90952.0,0.219896]
[1731788003143,0.11181128,90958.0,90955.0,0.109944]
[1731788004284,0.11352668,90958.0,90955.0,0.109944]
[1731788004944,0.11352668,90958.0,90956.0,0.109943]
[1731788005159,0.11352668,90958.0,90954.0,0.109945]
[1731788005810,0.11352668,90958.0,90955.0,0.109943]
[1731788006967,0.11352668,90958.0,90950.0,0.0008577]
[1731788007393,0.22346768,90958.0,90953.0,0.109946]
[1731788007854,0.11352668,90958.0,90952.0,0.109948]
[1731788008299,0.11352668,90958.0,90950.0,0.0008577]
[1731788008532,0.11352668,90958.0,90954.0,0.109945]
[1731788010528,0.11352668,90958.0,90955.0,0.109944]
[1731788011192,0.11352668,90958.0,90957.0,0.109942]
[1731788011639,0.11352668,90958.0,90951.0,0.219898]
[1731788011640,0.11352668,90958.0,90955.0,0.109943]
[1731788013011,0.0017154,90958.0,90957.0,0.109942]
[1731788013241,0.0017154,90958.0,90957.0,0.20870073]
[1731788013689,0.0017154,90958.0,90957.0,0.109942]
[1731788014110,0.0017154,90958.0,90957.0,0.14176532]
[1731788014144,0.0017154,90958.0,90957.0,0.18986532]
[1731788015704,0.0017154,90958.0,90957.0,0.22361562]
[1731788015920,0.0017154,90958.0,90957.0,0.25540991]
[1731788018705,0.0017154,90958.0,90957.0,0.32936018]
[1731788018938,0.0017154,90958.0,90957.0,0.22361562]
[1731788019666,0.0017154,90958.0,90957.0,0.47011913]
[1731788021214,0.0017154,90958.0,90957.0,0.22361562]
[1731788021733,0.0017154,90958.0,90957.0,0.42076251]
[1731788022603,0.0017154,90958.0,90957.0,0.22361562]
[1731788025381,0.0017154,90958.0,90957.0,0.37142119]
[1731788025603,0.0017154,90958.0,90957.0,0.37141755]
[1731788025828,0.0017154,90958.0,90957.0,0.37141814]
[1731788028065,0.0017154,90958.0,90957.0,0.22361562]
[1731788028289,0.0017154,90958.0,90957.0,0.17551562]
[1731788030586,0.0017154,90958.0,90957.0,0.32329007]
[1731788031481,0.0017154,90967.0,90966.0,0.189431]
[1731788031741,0.0017154,90967.0,90966.0,0.38603154]
[1731788031957,0.0017154,90967.0,90966.0,0.50905759]
[1731788032176,0.0017154,90967.0,90966.0,0.31208127]
[1731788032404,0.0017154,90967.0,90966.0,0.5090107]
[1731788033392,0.0017154,90967.0,90966.0,0.31208127]
[1731788033604,0.0017154,90967.0,90966.0,0.69702352]
[1731788034179,0.0017154,90967.0,90966.0,0.50009409]
[1731788034398,0.0017154,90967.0,90966.0,0.69702352]
[1731788034849,0.0017154,90967.0,90966.0,0.69902352]
[1731788035503,0.0017154,90967.0,90966.0,0.35419355]
[1731788035729,0.0017154,90967.0,90966.0,0.52509409]
[1731788035981,0.0017154,90967.0,90966.0,0.55680257]
[1731788036224,0.0017154,90967.0,90966.0,0.55480257]
[1731788036449,0.0017154,90967.0,90966.0,0.55680092]
[1731788036901,0.0017154,90967.0,90966.0,0.80274332]
[1731788037378,0.0017154,90967.0,90966.0,0.55680092]
[1731788037812,0.0017154,90967.0,90966.0,0.80270778]
[1731788038038,0.0017154,90967.0,90966.0,0.55680092]
[1731788038576,0.0017154,90967.0,90966.0,0.80267747]
[1731788038808,0.0017154,90967.0,90966.0,0.55680092]
[1731788039016,0.0017154,90967.0,90966.0,0.80267747]
[1731788039236,0.0017154,90967.0,90966.0,0.55680092]
[1731788040558,0.0017154,90967.0,90966.0,0.80266789]
[1731788040780,0.0017154,90967.0,90966.0,0.80566789]
[1731788040999,0.0017154,90967.0,90966.0,0.80766789]
[1731788041227,0.0017154,90967.0,90966.0,0.56180092]
[1731788041651,0.0017154,90967.0,90966.0,0.80763628]
[1731788041852,0.0017154,90967.0,90966.0,0.56180092]
[1731788042656,0.0017154,90967.0,90966.0,0.8076091]
[1731788042661,0.0017154,90967.0,90966.0,0.56180092]
[1731788042859,4e-07,90967.0,90966.0,0.56180092]
[1731788043199,4e-07,90967.0,90966.0,0.70889276]
[1731788043412,4e-07,90967.0,90966.0,0.40890038]
[1731788043631,4e-07,90967.0,90966.0,0.67748885]
[1731788043846,4e-07,90967.0,90966.0,0.75643912]
[1731788044031,4e-07,90967.0,90966.0,0.72673229]
[1731788044266,4e-07,90967.0,90966.0,0.87219084]
[1731788044482,4e-07,90967.0,90966.0,0.82994213]
[1731788044631,4e-07,90967.0,90966.0,0.9038924]
[1731788045043,4e-07,90967.0,90966.0,0.55979565]
[1731788045875,4e-07,90967.0,90966.0,0.70720866]
[1731788046130,4e-07,90967.0,90966.0,0.55979565]
[1731788046349,4e-07,90967.0,90966.0,0.70923168]
[1731788046751,4e-07,90967.0,90966.0,0.52809409]
[1731788047462,4e-07,90967.0,90966.0,0.56183068]
[1731788048181,4e-07,90967.0,90966.0,0.70933185]
[1731788048419,4e-07,90967.0,90966.0,0.70434517]
[1731788048645,4e-07,90967.0,90966.0,0.6353949]
[1731788048858,4e-07,90967.0,90966.0,0.56183068]
[1731788049324,4e-07,90967.0,90966.0,0.70934503]
[1731788049545,4e-07,90967.0,90966.0,0.70936012]
[1731788049984,4e-07,90967.0,90966.0,0.56183068]
[1731788050421,4e-07,90967.0,90966.0,0.7043778]
[1731788050742,4e-07,90967.0,90966.0,0.55768808]
[1731788050957,4e-07,90967.0,90966.0,0.56268808]
[1731788051389,4e-07,90967.0,90966.0,0.75930221]
[1731788051815,4e-07,90967.0,90966.0,0.71024222]
[1731788052046,4e-07,90967.0,90966.0,0.56268808]
[1731788053099,4e-07,90967.0,90966.0,0.75942792]
[1731788053326,4e-07,90967.0,90966.0,0.56268808]
[1731788053553,4e-07,90967.0,90966.0,0.29012875]
[1731788053780,4e-07,90967.0,90966.0,0.0008574]
[1731788053994,4e-07,90967.0,90966.0,0.18473867]
[1731788059886,4e-07,90967.0,90966.0,0.20773867]
[1731788063999,4e-07,90967.0,90966.0,0.20746433]
[1731788066407,4e-07,90967.0,90966.0,0.2814146]
[1731788067063,4e-07,90967.0,90966.0,0.31316523]
[1731788067478,4e-07,90967.0,90966.0,0.23921496]
[1731788067684,4e-07,90967.0,90966.0,0.31316523]
[1731788068329,4e-07,90967.0,90966.0,0.23921496]
[1731788068531,4e-07,90967.0,90966.0,0.31316523]
[1731788069382,4e-07,90967.0,90966.0,0.23921496]
[1731788070867,4e-07,90967.0,90966.0,0.31316523]
[1731788071280,4e-07,90967.0,90966.0,0.23921496]
[1731788072351,4e-07,90967.0,90966.0,0.48542081]
[1731788072785,4e-07,90967.0,90966.0,0.23921496]
[1731788073235,4e-07,90967.0,90966.0,0.31316523]
[1731788073465,4e-07,90967.0,90966.0,0.48542081]
[1731788073671,4e-07,90967.0,90966.0,0.23921496]
[1731788074965,4e-07,90967.0,90966.0,0.48542081]
[1731788075169,4e-07,90967.0,90966.0,0.48562709]
[1731788075413,4e-07,90967.0,90966.0,0.23921496]
[1731788075649,4e-07,90967.0,90966.0,0.48565696]
[1731788075867,4e-07,90967.0,90966.0,0.23921496]
[1731788077678,4e-07,90967.0,90966.0,0.42922778]
[1731788077916,4e-07,90967.0,90966.0,0.42422778]
[1731788078053,4e-07,90967.0,90966.0,0.7199565]
[1731788078810,4e-07,90967.0,90966.0,0.42422778]
[1731788079179,4e-07,90967.0,90966.0,0.71989434]
[1731788079433,4e-07,90967.0,90966.0,0.42422778]
[1731788080177,4e-07,90967.0,90966.0,0.71989434]
[1731788080627,4e-07,90967.0,90966.0,0.42422778]
[1731788080838,4e-07,90967.0,90966.0,0.71989191]
[1731788081527,4e-07,90967.0,90966.0,0.42422778]
[1731788081750,4e-07,90967.0,90966.0,0.71989191]
[1731788081979,4e-07,90967.0,90966.0,0.42422778]
[1731788082464,4e-07,90967.0,90966.0,0.71989191]
[1731788082912,4e-07,90967.0,90966.0,0.42422778]
[1731788083369,4e-07,90967.0,90966.0,0.42922778]
[1731788083612,0.16495752,90980.0,90979.0,0.28081554]
[1731788083837,0.16495752,90980.0,90979.0,0.59406755]
[1731788084062,0.16495752,90980.0,90979.0,0.34767845]
[1731788084316,0.16495752,90991.0,90989.0,0.109903]
[1731788084581,0.16495752,90991.0,90989.0,0.20685327]
[1731788084806,0.16495752,90991.0,90989.0,0.28080354]
[1731788085049,0.0775,90996.0,90989.0,0.28080354]
[1731788085290,0.0775,90996.0,90989.0,0.3793347]
[1731788085999,0.0775,90996.0,90989.0,0.20685327]
[1731788086878,0.005,91011.0,90989.0,0.109903]
[1731788086879,0.1282148,90990.0,90989.0,0.109903]
[1731788090572,0.1282148,90990.0,90989.0,0.13184161]
[1731788102789,0.0017148,90990.0,90989.0,0.13184161]
[1731788103243,0.0017148,90990.0,90989.0,0.22879188]
[1731788103977,0.0017152,90994.0,90993.0,0.132898]
[1731788104209,0.0017152,90994.0,90993.0,0.20684827]
[1731788104422,0.0017152,90994.0,90993.0,0.27871838]
[1731788104640,0.0017152,90994.0,90993.0,0.35266865]
[1731788105094,0.0017152,90994.0,90993.0,0.27871838]
[1731788106323,0.0017152,90994.0,90993.0,0.35466865]
[1731788107307,0.0017152,90994.0,90993.0,0.28071838]
[1731788107515,0.0017152,90994.0,90993.0,0.27371838]
[1731788107737,0.0017152,90994.0,90993.0,0.52474184]
[1731788107967,0.0017152,90994.0,90993.0,0.52674184]
[1731788108472,0.0017152,90994.0,90993.0,0.41067929]
[1731788108716,0.0017152,90994.0,90993.0,0.43540285]
[1731788108951,0.0017152,90994.0,90993.0,0.2386061]
[1731788109247,0.0017152,90994.0,90993.0,0.20684827]
[1731788109479,0.0017152,90994.0,90993.0,0.43537368]
[1731788109932,0.0017152,90994.0,90993.0,0.20684827]
[1731788110148,0.0017152,90994.0,90993.0,0.43537302]
[1731788110360,0.0017152,90994.0,90993.0,0.23857627]
[1731788110607,0.0017152,90994.0,90993.0,0.43543593]
[1731788110820,0.0017152,90994.0,90993.0,0.23857627]
[1731788112006,0.0017152,90994.0,90993.0,0.48459973]
[1731788112237,0.0017152,90994.0,90993.0,0.48633882]
[1731788112669,0.0017152,90994.0,90993.0,0.78150422]
[1731788112913,0.0017152,90994.0,90993.0,0.41238855]
[1731788113201,0.0017152,90994.0,90993.0,0.48433882]
[1731788113408,0.0017152,90994.0,90993.0,0.7795253]
[1731788113645,0.0017152,90994.0,90993.0,0.70557503]
[1731788113868,0.0017152,90994.0,90993.0,0.70757503]
[1731788114104,0.0017152,90994.0,90993.0,0.41238855]
[1731788114570,0.0017152,90994.0,90993.0,0.41038855]
[1731788114795,0.0017152,90994.0,90993.0,0.41238855]
[1731788121305,0.53789491,91000.0,90999.0,0.34594127]
[1731788121553,0.493098,91000.0,90999.0,0.52895409]
[1731788121774,0.493098,91000.0,90999.0,0.72562781]
[1731788122219,0.493098,91000.0,90999.0,0.52895409]
[1731788122690,0.493098,91000.0,90999.0,0.72559386]
[1731788123380,0.493098,91000.0,90999.0,0.72360666]
[1731788123589,0.493098,91000.0,90999.0,0.72560666]
[1731788124942,0.493098,91000.0,90999.0,0.52895409]
[1731788125381,0.493098,91000.0,90999.0,0.72560666]
[1731788126266,0.493098,91000.0,90999.0,0.52895409]
[1731788126713,0.493098,91000.0,90999.0,0.72554107]
[1731788126952,0.005,90996.0,90995.0,0.109896]
[1731788127172,0.01,90990.0,90981.0,0.0437824]
[1731788127401,0.0797,90996.0,90981.0,0.0437824]
[1731788127402,0.005,90982.0,90981.0,0.0437824]
[1731788127629,0.0847,90982.0,90981.0,0.02175654]
[1731788127860,0.0897,90982.0,90981.0,0.02175654]
[1731788128302,0.005,90978.0,90968.0,0.07395027]
[1731788128559,0.005,90974.0,90970.0,0.65934428]
[1731788128791,0.005,90974.0,90968.0,0.11823143]
[1731788129042,0.005,90974.0,90971.0,0.109923]
[1731788129264,0.005,90974.0,90973.0,0.0215831]
[1731788129493,0.005,90974.0,90973.0,0.1315051]
[1731788129713,0.005,90974.0,90973.0,0.0215831]
[1731788129934,0.005,90974.0,90973.0,0.1315051]
[1731788131549,0.005,90974.0,90973.0,0.0215831]
[1731788132192,0.005,90975.0,90973.0,0.1315051]
[1731788132423,0.005,90974.0,90973.0,0.1315051]
[1731788133531,0.005,90974.0,90973.0,0.0215831]
[1731788133753,0.005,90974.0,90973.0,0.1315051]
[1731788133989,0.005,90974.0,90973.0,0.2422832]
[1731788134208,0.005,90978.0,90977.0,0.109917]
[1731788135317,0.01,90978.0,90977.0,0.109917]
[1731788139857,0.01,90978.0,90977.0,0.15399328]
[1731788141906,0.01,90986.0,90985.0,0.109908]
[1731788142121,0.005,90987.0,90985.0,0.109908]
[1731788142343,0.005,90987.0,90986.0,0.109907]
[1731788142584,0.01,90987.0,90986.0,0.109907]
[1731788142814,0.005,90987.0,90986.0,0.109907]
[1731788143034,0.01,90987.0,90986.0,0.109907]
[1731788143510,0.005,90987.0,90986.0,0.109907]
[1731788143736,0.005,90987.0,90981.0,0.219826]
[1731788143737,0.0781,90990.0,90989.0,0.109903]
[1731788144253,0.0781,90990.0,90987.0,0.109905]
[1731788144508,0.0781,90990.0,90981.0,0.219826]
[1731788144509,0.005,90984.0,90983.0,0.10991]
[1731788144757,0.005,90980.0,90974.0,0.0423797]
[1731788144989,0.005,90980.0,90979.0,0.109915]
[1731788146119,0.005,90975.0,90974.0,0.219843]
[1731788146348,0.114921,90974.0,90973.0,0.0008571]
[1731788146571,0.20276928,90974.0,90973.0,0.0008571]
[1731788146828,0.24756928,90974.0,90973.0,0.0008571]
[1731788147067,0.24956928,90974.0,90973.0,0.0008571]
[1731788147734,0.13964828,90974.0,90973.0,0.0008571]
[1731788149833,0.13764828,90974.0,90973.0,0.1107791]
[1731788150271,0.1349,90974.0,90973.0,0.1107791]
[1731788151460,0.1349,90974.0,90966.0,0.00058306]
[1731788151461,0.196228,90968.0,90966.0,0.00058306]
[1731788151710,0.3632392,90968.0,90966.0,0.00058306]
[1731788151997,0.36049055,90968.0,90966.0,0.00058306]
[1731788152439,0.119939,90959.0,90958.0,0.11138132]
[1731788152669,0.35550155,90959.0,90958.0,0.11138132]
[1731788155897,0.246439,90959.0,90958.0,0.11138132]
[1731788156138,0.1345,90959.0,90958.0,0.11138132]
[1731788158004,0.01,90961.0,90958.0,0.33126032]
[1731788158242,0.005,90961.0,90960.0,0.109938]
[1731788158489,0.01,90961.0,90960.0,0.109938]
[1731788160521,0.01,90965.0,90961.0,0.219872]
[1731788160767,0.01,90969.0,90968.0,0.109928]
[1731788160991,0.01,90969.0,90962.0,0.219872]
[1731788161217,0.01,90969.0,90968.0,0.109928]
[1731788161447,0.01,90969.0,90968.0,0.27481118]
[1731788161668,0.01,90969.0,90968.0,0.109928]
[1731788161901,0.01,90972.0,90971.0,0.109925]
[1731788162170,0.005,90972.0,90971.0,0.109925]
[1731788162362,0.005,90973.0,90972.0,0.109923]
[1731788162589,0.002,90985.0,90972.0,0.109923]
[1731788162590,0.00774811,90986.0,90981.0,0.109913]
[1731788162860,0.005,90985.0,90972.0,0.1126416]
[1731788163089,0.005,90986.0,90972.0,0.1126416]
[1731788163090,0.01,90986.0,90972.0,0.1126416]
[1731788163345,0.0777,90993.0,90989.0,0.109903]
[1731788163346,0.005,90992.0,90989.0,0.109903]
[1731788163853,0.0067144,90990.0,90989.0,0.109903]
[1731788164349,0.005,90986.0,90985.0,0.109908]
[1731788164564,0.005,90986.0,90985.0,0.27479118]
[1731788165447,0.0017144,90990.0,90986.0,0.219812]
[1731788165669,0.0017144,90990.0,90989.0,0.109903]
[1731788166151,0.0117144,90990.0,90989.0,0.109903]
[1731788167607,0.0017144,90990.0,90989.0,0.109903]
[1731788169495,0.0017144,90990.0,90987.0,0.109905]
[1731788169496,0.005,90988.0,90987.0,0.109905]
[1731788172773,0.005,90988.0,90986.0,0.16488318]
[1731788173014,0.005,90988.0,90987.0,0.109905]
[1731788176789,0.0017144,90990.0,90989.0,0.109903]
[1731788178449,0.0017144,90990.0,90989.0,0.132903]
[1731788178675,0.0017144,90990.0,90989.0,0.24196555]
[1731788182285,0.0017144,90990.0,90989.0,0.35460715]